bitfinex/quotes_SOLUSD_20241031
["timestamp","ask_amount","ask_price","bid_price","bid_amount"]
[1730386226988,26.91534369,169.93,169.88,26.91534369]
[1730386227196,5.8846,169.94,169.89,26.91534369]
[1730386227197,26.91534369,169.94,169.89,26.91534369]
[1730386227780,26.91534369,169.95,169.9,26.91534369]
[1730386227984,26.91534369,169.94,169.89,26.91534369]
[1730386228169,26.91534369,169.93,169.88,32.80154369]
[1730386228814,26.91534369,169.95,169.89,26.91534369]
[1730386229096,26.91534369,169.95,169.9,26.91534369]
[1730386229895,26.91534369,169.96,169.91,26.91534369]
[1730386230086,14.7063,170.0,169.93,26.91534369]
[1730386230087,26.91534369,169.98,169.93,26.91534369]
[1730386230295,26.91534369,169.96,169.91,26.91534369]
[1730386230479,26.91534369,169.98,169.92,26.91534369]
[1730386230785,26.91534369,169.97,169.92,26.91534369]
[1730386230994,26.91534369,169.96,169.91,26.91534369]
[1730386231382,26.91534369,169.94,169.9,20.6]
[1730386231699,26.91534369,169.96,169.91,26.91534369]
[1730386231907,26.91534369,169.98,169.92,26.91534369]
[1730386232078,32.79734369,170.01,169.95,26.91534369]
[1730386232389,32.79734369,170.01,169.9,50.029]
[1730386232390,26.91534369,170.02,169.96,26.91534369]
[1730386232589,5.8808,170.05,169.94,0.12549]
[1730386232795,32.79614369,170.05,170.0,26.91534369]
[1730386233111,26.91534369,170.04,169.99,26.91534369]
[1730386233316,26.91534369,170.1,170.04,20.5833]
[1730386233601,26.91534369,170.13,170.07,26.91534369]
[1730386233803,26.91534369,170.13,170.08,26.91534369]
[1730386233980,44.79284369,170.14,170.09,26.91534369]
[1730386234180,12.0,170.14,170.09,26.91534369]
[1730386234380,44.79284369,170.14,170.04,49.9881]
[1730386234600,61.56047113,170.14,170.08,43.68297113]
[1730386234785,43.68297113,170.13,170.07,43.68297113]
[1730386235394,5.8782,170.12,170.07,43.68297113]
[1730386235892,49.56117113,170.12,170.07,43.68297113]
[1730386237101,49.56117113,170.12,170.05,67.45985513]
[1730386237102,43.68297113,170.11,170.05,67.45985513]
[1730386237682,49.56117113,170.12,170.07,43.68297113]
[1730386237882,43.68297113,170.13,170.08,43.68297113]
[1730386238088,12.0,170.14,170.1,43.68297113]
[1730386238396,12.0,170.14,170.05,23.776884]
[1730386238397,12.0,170.14,170.13,43.68297113]
[1730386240094,12.0,170.14,170.13,67.45985513]
[1730386241189,12.0,170.14,170.13,73.58863513]
[1730386241606,12.0,170.14,170.13,93.58863513]
[1730386241780,12.0,170.14,170.13,100.42692513]
[1730386241982,0.6050007,170.19,170.14,44.253354]
[1730386242283,0.6050007,170.19,170.18,67.71083513]
[1730386242476,0.6050007,170.19,170.16,43.68297113]
[1730386242726,0.6050007,170.19,170.17,23.776884]
[1730386242987,50.16397183,170.19,170.14,43.68297113]
[1730386243208,43.68297113,170.18,170.14,23.776884]
[1730386243410,43.68297113,170.17,170.13,14.6946]
[1730386244213,6.4810007,170.19,170.11,43.68297113]
[1730386244214,43.68297113,170.16,170.11,43.68297113]
[1730386244379,43.68297113,170.16,170.1,43.68297113]
[1730386244908,43.68297113,170.17,170.11,43.68297113]
[1730386245208,0.6050007,170.19,170.14,43.68297113]
[1730386245406,6.4807007,170.19,170.15,43.68297113]
[1730386245609,0.6050007,170.19,170.15,43.68297113]
[1730386245779,6.4807007,170.19,170.15,43.68297113]
[1730386246597,50.16367183,170.19,170.15,23.776884]
[1730386246903,50.16367183,170.19,170.14,23.776884]
[1730386247113,43.68297113,170.15,170.1,43.68297113]
[1730386247281,6.4807007,170.19,170.1,43.68297113]
[1730386247282,43.68297113,170.16,170.1,43.68297113]
[1730386247487,43.68297113,170.16,170.11,43.68297113]
[1730386247697,43.68297113,170.17,170.12,43.68297113]
[1730386247897,43.68297113,170.18,170.13,43.68297113]
[1730386248094,50.16367183,170.19,170.14,43.68297113]
[1730386248390,43.68297113,170.17,170.12,43.68297113]
[1730386248592,43.68297113,170.16,170.11,43.68297113]
[1730386248797,49.55977113,170.16,170.11,43.68297113]
[1730386248995,43.68297113,170.15,170.1,73.33865513]
[1730386249191,43.68297113,170.15,170.1,43.68297113]
[1730386249401,43.68297113,170.17,170.11,43.68297113]
[1730386249594,0.6050007,170.19,170.15,43.68297113]
[1730386249806,0.6050007,170.19,170.16,43.68297113]
[1730386249993,0.6050007,170.19,170.15,43.68297113]
[1730386250188,0.6050007,170.19,170.11,23.902374]
[1730386250391,0.6050007,170.19,170.18,43.68297113]
[1730386250596,0.6050007,170.19,170.17,43.68297113]
[1730386251222,0.6050007,170.19,170.17,49.55937113]
[1730386251414,0.6050007,170.19,170.18,43.68297113]
[1730386251913,44.28797183,170.19,170.14,43.68297113]
[1730386252116,50.16377183,170.19,170.14,43.68297113]
[1730386252412,0.6050007,170.19,170.16,43.68297113]
[1730386252714,0.6050007,170.19,170.17,43.68297113]
[1730386253712,0.6050007,170.19,170.16,43.68297113]
[1730386254629,0.6050007,170.19,170.15,26.85819349]
[1730386254789,0.6050007,170.19,170.14,20.5712]
[1730386254790,0.6050007,170.19,170.17,26.85819349]
[1730386254997,0.6050007,170.19,170.16,5.8767]
[1730386255198,27.46319419,170.19,170.14,47.42909349]
[1730386255394,6.4809007,170.19,170.04,0.1]
[1730386255688,23.902374,170.16,170.05,6.3965]
[1730386255898,23.902374,170.16,170.02,36.6991]
[1730386256430,23.902374,170.16,170.05,26.85819349]
[1730386256431,26.85819349,170.1,170.05,26.85819349]
[1730386256588,26.85819349,170.11,170.05,26.85819349]
[1730386256988,32.73689349,170.11,170.06,26.85819349]
[1730386257188,26.85819349,170.12,170.06,26.85819349]
[1730386257585,26.85819349,170.12,170.07,26.85819349]
[1730386257923,26.85819349,170.13,170.07,26.85819349]
[1730386258098,26.85819349,170.14,170.08,26.85819349]
[1730386258412,26.85819349,170.15,170.09,26.85819349]
[1730386258631,5.8764,170.17,170.09,26.85819349]
[1730386258632,26.85819349,170.14,170.09,26.85819349]
[1730386258814,26.85819349,170.13,170.08,26.85819349]
[1730386259125,26.85819349,170.14,170.08,26.85819349]
[1730386259291,26.85819349,170.13,170.08,5.8795]
[1730386259487,26.85819349,170.13,170.08,32.73769349]
[1730386260217,5.8778,170.14,170.09,26.85819349]
[1730386260420,32.73529349,170.15,170.1,26.85819349]
[1730386260600,14.6909,170.18,170.12,26.85819349]
[1730386260601,26.85819349,170.17,170.12,26.85819349]
[1730386260788,26.85819349,170.16,170.1,26.85819349]
[1730386261107,26.85819349,170.13,170.08,47.43659349]
[1730386261314,26.85819349,170.15,170.1,26.85819349]
[1730386261500,26.85819349,170.16,170.11,26.85819349]
[1730386262210,26.85819349,170.16,170.11,32.73649349]
[1730386262415,26.85819349,170.16,170.11,47.43279349]
[1730386262914,26.85819349,170.13,170.08,26.85819349]
[1730386263123,26.85819349,170.15,170.09,26.85819349]
[1730386263414,26.85819349,170.14,170.09,26.85819349]
[1730386263815,26.85819349,170.12,170.06,26.85819349]
[1730386264194,26.85819349,170.13,170.08,32.73749349]
[1730386264608,32.73589349,170.14,170.09,26.85819349]
[1730386264801,5.8777,170.14,170.09,26.85819349]
[1730386264999,32.73589349,170.14,170.09,26.85819349]
[1730386265205,32.73499349,170.16,170.1,26.85819349]
[1730386265421,26.85819349,170.13,170.08,26.85819349]
[1730386266328,5.8782,170.12,170.08,26.85819349]
[1730386266494,26.85819349,170.13,170.08,26.85819349]
[1730386266701,26.85819349,170.14,170.09,26.85819349]
[1730386266894,5.8761,170.18,170.09,26.85819349]
[1730386267098,26.85819349,170.14,170.09,26.85819349]
[1730386267318,26.85819349,170.12,170.07,47.43679349]
[1730386267615,26.85819349,170.12,170.07,41.55709349]
[1730386268121,26.85819349,170.14,170.09,26.85819349]
[1730386268338,26.85819349,170.16,170.11,26.85819349]
[1730386268495,32.73429349,170.18,170.12,26.85819349]
[1730386268695,32.73429349,170.18,170.13,26.85819349]
[1730386269124,32.73429349,170.18,170.12,26.85819349]
[1730386269421,0.6050007,170.19,170.15,26.85819349]
[1730386269595,0.6050007,170.19,170.11,0.12549]
[1730386269801,0.6050007,170.19,170.18,26.85819349]
[1730386270400,0.6050007,170.19,170.18,56.76215749]
[1730386270901,0.6050007,170.19,170.18,83.62035098]
[1730386271310,50.6145,170.34,170.19,44.027864]
[1730386271311,26.85819349,170.31,170.19,44.027864]
[1730386271513,21.1605,170.34,170.19,44.027864]
[1730386271514,26.85819349,170.32,170.27,26.85819349]
[1730386271803,32.72909349,170.33,170.22,0.12549]
[1730386272114,26.85819349,170.32,170.27,26.85819349]
[1730386272313,32.72949349,170.32,170.27,26.85819349]
[1730386272499,26.85819349,170.33,170.28,26.85819349]
[1730386272699,5.8709,170.33,170.28,26.85819349]
[1730386273126,32.72879349,170.34,170.28,26.85819349]
[1730386273646,33.33339419,170.36,170.3,26.85819349]
[1730386273827,27.46319419,170.36,170.3,26.85819349]
[1730386274125,27.46319419,170.36,170.31,26.85819349]
[1730386274511,0.6050007,170.36,170.33,26.85819349]
[1730386274715,6.4749007,170.36,170.32,26.85819349]
[1730386274910,6.4749007,170.36,170.3,5.8719]
[1730386274911,0.6050007,170.36,170.33,26.85819349]
[1730386276023,0.6050007,170.36,170.3,20.5518]
[1730386276228,33.33309419,170.36,170.31,26.85819349]
[1730386276525,33.33309419,170.36,170.3,20.5518]
[1730386276526,6.4749007,170.36,170.32,26.85819349]
[1730386276902,0.6050007,170.36,170.33,26.85819349]
[1730386277101,0.6050007,170.36,170.35,26.85819349]
[1730386278419,0.6050007,170.36,170.33,26.85819349]
[1730386278611,0.6050007,170.36,170.32,26.85819349]
[1730386279205,6.4750007,170.36,170.32,26.85819349]
[1730386279619,6.4750007,170.36,170.33,26.85819349]
[1730386280306,0.6050007,170.36,170.33,26.85819349]
[1730386280709,6.4751007,170.36,170.32,26.85819349]
[1730386280909,33.33329419,170.36,170.3,26.85819349]
[1730386281218,33.33329419,170.36,170.29,26.85819349]
[1730386281219,26.85819349,170.34,170.29,26.85819349]
[1730386281610,33.33329419,170.36,170.31,26.85819349]
[1730386282124,6.4751007,170.36,170.32,26.85819349]
[1730386282326,0.6050007,170.36,170.34,26.85819349]
[1730386282631,0.6050007,170.36,170.33,26.85819349]
[1730386282945,33.33329419,170.36,170.31,26.85819349]
[1730386283321,26.85819349,170.34,170.29,26.85819349]
[1730386283526,26.85819349,170.35,170.3,26.85819349]
[1730386283731,6.4751007,170.36,170.31,26.85819349]
[1730386283913,26.85819349,170.35,170.3,26.85819349]
[1730386284119,26.85819349,170.34,170.29,26.85819349]
[1730386284543,5.8709,170.33,170.29,26.85819349]
[1730386285038,32.72909349,170.33,170.28,26.85819349]
[1730386285246,26.85819349,170.31,170.26,26.85819349]
[1730386285533,26.85819349,170.31,170.23,14.6853]
[1730386285534,32.72909349,170.33,170.28,26.85819349]
[1730386285740,26.85819349,170.32,170.27,26.85819349]
[1730386285940,20.0,170.32,170.27,26.85819349]
[1730386286153,26.85819349,170.3,170.25,26.85819349]
[1730386286444,5.8709,170.33,170.29,26.85819349]
[1730386286740,26.85819349,170.3,170.25,26.85819349]
[1730386286915,26.85819349,170.32,170.27,26.85819349]
[1730386287721,32.72909349,170.33,170.28,26.85819349]
[1730386288020,32.72909349,170.33,170.26,26.85819349]
[1730386288021,26.85819349,170.31,170.26,26.85819349]
[1730386288222,26.85819349,170.3,170.25,26.85819349]
[1730386288516,5.8726,170.28,170.24,26.85819349]
[1730386288711,5.8726,170.28,170.25,26.85819349]
[1730386288915,5.8726,170.28,170.24,26.85819349]
[1730386289228,26.85819349,170.27,170.22,26.85819349]
[1730386289430,5.8726,170.28,170.21,12.1505]
[1730386289431,32.73079349,170.28,170.23,26.85819349]
[1730386290144,5.8726,170.28,170.21,20.9632]
[1730386290347,26.85819349,170.31,170.26,26.85819349]
[1730386290547,5.872,170.3,170.25,26.85819349]
[1730386291421,32.73019349,170.3,170.25,26.85819349]
[1730386291742,26.85819349,170.27,170.22,26.85819349]
[1730386292444,26.85819349,170.24,170.19,26.85819349]
[1730386292656,26.85819349,170.23,170.18,26.85819349]
[1730386293755,5.875,170.21,170.17,33.11929349]
[1730386294058,26.85819349,170.23,170.18,47.42459349]
[1730386294234,26.85819349,170.25,170.2,26.85819349]
[1730386294628,32.73159349,170.26,170.21,26.85819349]
[1730386294830,32.73159349,170.26,170.18,20.5664]
[1730386294831,5.8727,170.28,170.24,26.85819349]
[1730386295130,26.85819349,170.3,170.25,26.85819349]
[1730386295334,26.85819349,170.3,170.24,26.85819349]
[1730386295743,32.73019349,170.3,170.25,26.85819349]
[1730386296049,32.73019349,170.3,170.18,29.4806]
[1730386296050,20.5519,170.3,170.21,20.5627]
[1730386296252,26.85819349,170.29,170.24,26.85819349]
[1730386296427,32.73019349,170.3,170.24,26.85819349]
[1730386297063,32.73019349,170.3,170.25,26.85819349]
[1730386297267,32.73019349,170.3,170.25,32.73179349]
[1730386297436,5.872,170.3,170.26,26.85819349]
[1730386298261,26.85819349,170.29,170.25,5.8736]
[1730386298632,32.73019349,170.3,170.25,32.73179349]
[1730386299127,26.85819349,170.32,170.27,26.85819349]
[1730386299323,26.85819349,170.32,170.26,26.85819349]
[1730386299758,26.85819349,170.32,170.27,26.85819349]
[1730386299936,26.85819349,170.3,170.25,47.41599349]
[1730386300354,26.85819349,170.34,170.28,26.85819349]
[1730386300539,32.72869349,170.35,170.29,26.85819349]
[1730386300738,16.4028,170.4,170.27,14.6819]
[1730386300739,26.85819349,170.38,170.32,26.85819349]
[1730386300948,6.4749007,170.36,170.32,26.85819349]
[1730386301262,27.46319419,170.36,170.31,26.85819349]
[1730386301464,0.6050007,170.36,170.32,26.85819349]
[1730386302058,0.6050007,170.36,170.33,26.85819349]
[1730386302363,26.85819349,170.35,170.3,71.43755749]
[1730386302662,0.6050007,170.36,170.32,26.85819349]
[1730386302847,0.6050007,170.36,170.33,26.85819349]
[1730386304235,0.6050007,170.36,170.35,26.85819349]
[1730386304427,0.6050007,170.36,170.35,32.72839349]
[1730386306840,0.6050007,170.36,170.34,14.6761]
[1730386307148,0.6050007,170.36,170.34,47.40489349]
[1730386307345,0.6050007,170.36,170.35,26.85819349]
[1730386307753,0.6050007,170.36,170.35,32.72839349]
[1730386308334,0.6050007,170.36,170.35,72.85074749]
[1730386310757,0.6050007,170.36,170.35,56.88174749]
[1730386310952,0.6050007,170.36,170.35,32.97937349]
[1730386311359,0.6050007,170.36,170.35,32.72839349]
[1730386311538,0.6050007,170.36,170.32,26.85819349]
[1730386311744,0.6050007,170.36,170.33,26.85819349]
[1730386312256,0.6050007,170.36,170.34,26.85819349]
[1730386312456,0.6050007,170.36,170.35,26.85819349]
[1730386312847,0.6050007,170.36,170.35,51.01154749]
[1730386313246,0.6050007,170.36,170.35,26.85819349]
[1730386313441,0.6050007,170.36,170.35,27.10917349]
[1730386313668,0.6050007,170.36,170.35,32.97937349]
[1730386315143,0.6050007,170.36,170.34,32.72869349]
[1730386315340,0.6050007,170.36,170.34,5.8705]
[1730386315544,6.4749007,170.36,170.33,26.85819349]
[1730386315738,0.6050007,170.36,170.33,26.85819349]
[1730386316264,0.6050007,170.36,170.34,26.85819349]
[1730386316464,0.6050007,170.36,170.33,32.72899349]
[1730386316678,26.85819349,170.34,170.27,32.73109349]
[1730386316844,26.85819349,170.33,170.27,26.85819349]
[1730386317169,6.4749007,170.36,170.3,26.85819349]
[1730386317170,26.85819349,170.35,170.3,26.85819349]
[1730386317346,0.6050007,170.36,170.26,6.19879]
[1730386317674,0.6050007,170.36,170.28,0.1]
[1730386317839,0.6050007,170.36,170.34,26.85819349]
[1730386319070,0.6050007,170.36,170.35,27.10917349]
[1730386319362,0.6050007,170.36,170.35,32.97937349]
[1730386319549,0.6050007,170.36,170.35,32.72839349]
[1730386319759,0.6050007,170.36,170.35,5.8702]
[1730386320173,0.6050007,170.36,170.34,47.40479349]
[1730386320346,0.6050007,170.36,170.35,26.85819349]
[1730386321667,0.6050007,170.36,170.32,5.871]
[1730386321668,0.6050007,170.36,170.33,26.85819349]
[1730386321878,6.4749007,170.36,170.32,26.85819349]
[1730386322076,26.85819349,170.33,170.28,26.85819349]
[1730386322248,26.85819349,170.32,170.27,26.85819349]
[1730386323465,26.85819349,170.3,170.25,41.54239349]
[1730386323769,15.2798007,170.36,170.28,26.85819349]
[1730386323770,32.72919349,170.33,170.28,26.85819349]
[1730386324280,26.85819349,170.34,170.28,26.85819349]
[1730386324571,32.72849349,170.35,170.29,26.85819349]
[1730386324784,33.33309419,170.36,170.31,26.85819349]
[1730386325283,27.46319419,170.36,170.31,26.85819349]
[1730386325445,33.33309419,170.36,170.31,26.85819349]
[1730386325640,26.85819349,170.34,170.3,14.6798]
[1730386326248,27.46319419,170.36,170.31,24.027864]
[1730386326445,0.6050007,170.36,170.33,26.85819349]
[1730386326667,0.6050007,170.36,170.32,26.85819349]
[1730386327565,0.6050007,170.36,170.32,32.72929349]
[1730386328648,0.6050007,170.36,170.35,26.85819349]
[1730386328852,0.6050007,170.36,170.35,50.63507749]
[1730386329456,0.6050007,170.36,170.35,23.776884]
[1730386329978,0.6050007,170.36,170.35,50.63507749]
[1730386330879,0.6050007,170.36,170.35,56.75625749]
[1730386331659,0.6050007,170.36,170.35,56.88174749]
[1730386333067,0.6050007,170.36,170.35,76.98174749]
[1730386333263,0.6050007,170.36,170.35,77.08174749]
[1730386333696,0.6050007,170.36,170.35,76.88174749]
[1730386333893,0.6050007,170.36,170.35,56.50527749]
[1730386334589,0.6050007,170.36,170.35,56.63076749]
[1730386334776,0.6050007,170.36,170.35,56.50527749]
[1730386335165,0.6050007,170.36,170.35,29.898064]
[1730386335390,27.46319419,170.36,170.32,14.6782]
[1730386335582,26.85819349,170.34,170.3,5.8717]
[1730386335887,6.4752007,170.36,170.25,6.2022]
[1730386335888,26.85819349,170.32,170.27,47.41369349]
[1730386336196,26.85819349,170.33,170.28,26.85819349]
[1730386336777,26.85819349,170.33,170.28,32.73069349]
[1730386337173,26.85819349,170.31,170.27,14.6825]
[1730386337480,26.85819349,170.3,170.25,26.85819349]
[1730386337874,26.85819349,170.31,170.25,26.85819349]
[1730386338071,26.85819349,170.3,170.25,26.85819349]
[1730386338675,26.85819349,170.31,170.25,26.85819349]
[1730386338876,26.85819349,170.31,170.25,32.73159349]
[1730386339190,26.85819349,170.29,170.25,5.8734]
[1730386340274,26.85819349,170.29,170.21,41.54579349]
[1730386340275,26.85819349,170.26,170.21,41.54579349]
[1730386340464,5.8725,170.29,170.17,6.5298]
[1730386340465,26.85819349,170.24,170.2,5.8751]
[1730386340696,12.2588,170.29,170.15,29.3858]
[1730386340697,26.85819349,170.21,170.18,14.6902]
[1730386341166,26.85819349,170.2,170.16,5.8768]
[1730386341363,26.85819349,170.21,170.16,20.5688]
[1730386341575,26.85819349,170.23,170.18,26.85819349]
[1730386341976,26.85819349,170.23,170.18,32.73419349]
[1730386342180,26.85819349,170.26,170.21,26.85819349]
[1730386342787,26.85819349,170.23,170.18,47.42449349]
[1730386343298,26.85819349,170.22,170.18,20.5663]
[1730386343476,26.85819349,170.23,170.18,47.42449349]
[1730386343790,26.85819349,170.23,170.18,26.85819349]
[1730386343996,26.85819349,170.22,170.17,26.85819349]
[1730386344167,26.85819349,170.21,170.17,23.776884]
[1730386345075,26.85819349,170.22,170.18,5.8761]
[1730386345273,26.85819349,170.24,170.19,26.85819349]
[1730386345473,26.85819349,170.24,170.18,5.8761]
[1730386345474,26.85819349,170.23,170.18,47.42459349]
[1730386345691,26.85819349,170.22,170.18,20.5664]
[1730386345876,26.85819349,170.23,170.18,47.42459349]
[1730386346074,26.85819349,170.22,170.18,20.5664]
[1730386346293,4.32273891,170.21,170.18,14.6903]
[1730386346476,26.85819349,170.22,170.18,14.6903]
[1730386346677,4.32288014,170.21,170.18,14.6903]
[1730386346993,4.32201991,170.2,170.18,14.6903]
[1730386347170,26.85819349,170.22,170.17,26.85819349]
[1730386347370,26.85819349,170.22,170.17,32.73459349]
[1730386347575,26.85819349,170.22,170.17,5.8764]
[1730386347797,26.85819349,170.22,170.17,32.73459349]
[1730386348503,26.85819349,170.25,170.2,26.85819349]
[1730386348876,15.9732,170.27,170.19,26.85819349]
[1730386348877,26.85819349,170.24,170.19,26.85819349]
[1730386349597,26.85819349,170.22,170.17,26.85819349]
[1730386349907,26.85819349,170.22,170.13,6.5298]
[1730386349908,26.85819349,170.18,170.13,33.38799349]
[1730386350077,26.85819349,170.16,170.11,41.55429349]
[1730386350285,26.85819349,170.16,170.11,47.43279349]
[1730386350604,26.85819349,170.17,170.12,26.85819349]
[1730386351305,26.85819349,170.16,170.11,41.55429349]
[1730386351883,32.73499349,170.16,170.11,41.55429349]
[1730386352084,26.85819349,170.14,170.09,26.85819349]
[1730386352298,26.85819349,170.13,170.08,26.85819349]
[1730386352524,26.85819349,170.11,170.05,33.34989349]
[1730386352820,26.85819349,170.1,170.05,33.34989349]
[1730386353023,5.8768,170.16,170.06,26.85819349]
[1730386353024,26.85819349,170.11,170.06,26.85819349]
[1730386353209,26.85819349,170.12,170.07,26.85819349]
[1730386353519,26.85819349,170.14,170.09,26.85819349]
[1730386353735,26.85819349,170.13,170.08,32.73759349]
[1730386354526,26.85819349,170.14,170.09,26.85819349]
[1730386355021,26.85819349,170.21,170.13,26.85819349]
[1730386355204,26.85819349,170.21,170.15,26.85819349]
[1730386355597,32.73429349,170.18,170.13,26.85819349]
[1730386355799,26.85819349,170.15,170.1,26.85819349]
[1730386355998,26.85819349,170.14,170.08,47.43659349]
[1730386356253,26.85819349,170.13,170.08,47.43659349]
[1730386356606,26.85819349,170.12,170.08,14.6989]
[1730386356923,26.85819349,170.09,170.04,41.55999349]
[1730386357114,26.85819349,170.09,170.04,14.7018]
[1730386357620,26.85819349,170.09,170.04,41.55999349]
[1730386357923,26.85819349,170.09,170.04,47.44089349]
[1730386358698,32.73719349,170.1,170.04,47.44089349]
[1730386358902,26.85819349,170.12,170.07,26.85819349]
[1730386359116,43.03769349,170.15,170.1,26.85819349]
[1730386359318,26.85819349,170.16,170.11,26.85819349]
[1730386359626,26.85819349,170.17,170.12,26.85819349]
[1730386359821,16.4134,170.2,170.07,0.22549]
[1730386359822,26.85819349,170.19,170.14,26.85819349]
[1730386360938,32.73329349,170.21,170.16,26.85819349]
[1730386361436,26.85819349,170.2,170.15,26.85819349]
[1730386361933,26.85819349,170.17,170.11,47.43299349]
[1730386362140,26.85819349,170.14,170.09,26.85819349]
[1730386362518,26.85819349,170.15,170.1,26.85819349]
[1730386363033,26.85819349,170.16,170.11,26.85819349]
[1730386363613,26.85819349,170.15,170.1,47.43419349]
[1730386364022,26.85819349,170.16,170.11,26.85819349]
[1730386364219,32.73499349,170.16,170.11,32.73659349]
[1730386364620,26.85819349,170.19,170.14,26.85819349]
[1730386365022,26.85819349,170.18,170.13,26.85819349]
[1730386366033,5.8762,170.18,170.13,32.73589349]
[1730386366445,5.8757,170.2,170.16,26.85819349]
[1730386366741,26.85819349,170.26,170.19,26.85819349]
[1730386366919,26.85819349,170.27,170.22,26.85819349]
[1730386367117,26.85819349,170.28,170.22,26.85819349]
[1730386368039,5.8747,170.22,170.17,26.85819349]
[1730386368236,26.85819349,170.23,170.18,26.85819349]
[1730386368438,26.85819349,170.28,170.16,44.596464]
[1730386368439,26.85819349,170.27,170.22,26.85819349]
[1730386368627,5.8723,170.29,170.17,0.12549]
[1730386368935,15.6024,170.3,170.17,20.32549]
[1730386369116,5.872,170.3,170.19,0.12549]
[1730386369723,26.85819349,170.26,170.21,26.85819349]
[1730386370141,26.85819349,170.26,170.21,32.73309349]
[1730386370730,32.73139349,170.27,170.22,26.85819349]
[1730386371426,26.85819349,170.26,170.21,47.42079349]
[1730386371625,32.73139349,170.27,170.21,47.42079349]
[1730386371925,32.73139349,170.27,170.22,26.85819349]
[1730386372850,32.73139349,170.27,170.21,41.54589349]
[1730386373043,32.73159349,170.26,170.21,41.54589349]
[1730386373345,32.73159349,170.26,170.18,24.027864]
[1730386373346,26.85819349,170.27,170.22,26.85819349]
[1730386373544,26.85819349,170.26,170.21,26.85819349]
[1730386374236,26.85819349,170.29,170.24,26.85819349]
[1730386374445,26.85819349,170.3,170.25,26.85819349]
[1730386374745,26.85819349,170.28,170.23,26.85819349]
[1730386375121,26.85819349,170.28,170.22,41.54439349]
[1730386375319,26.85819349,170.26,170.22,20.5606]
[1730386375542,26.85819349,170.25,170.22,14.6862]
[1730386376121,26.85819349,170.25,170.2,32.73359349]
[1730386376826,26.85819349,170.24,170.2,20.564]
[1730386377946,32.73219349,170.24,170.19,32.73389349]
[1730386378152,26.85819349,170.22,170.18,5.8761]
[1730386378645,26.85819349,170.21,170.17,20.5673]
[1730386379056,26.85819349,170.22,170.17,20.5673]
[1730386379346,26.85819349,170.23,170.17,47.42549349]
[1730386379534,26.85819349,170.23,170.18,26.85819349]
[1730386379845,26.85819349,170.22,170.17,20.5673]
[1730386380024,26.85819349,170.21,170.16,26.85819349]
[1730386380219,26.85819349,170.2,170.15,32.73499349]
[1730386380537,26.85819349,170.22,170.16,26.85819349]
[1730386380854,26.85819349,170.22,170.17,26.85819349]
[1730386381225,26.85819349,170.23,170.18,26.85819349]
[1730386381441,26.85819349,170.24,170.19,26.85819349]
[1730386381630,26.85819349,170.25,170.2,26.85819349]
[1730386381835,26.85819349,170.26,170.2,26.85819349]
[1730386382369,26.85819349,170.28,170.23,26.85819349]
[1730386382646,26.85819349,170.24,170.19,26.85819349]
[1730386382950,26.85819349,170.25,170.2,26.85819349]
[1730386383247,26.85819349,170.25,170.2,32.73329349]
[1730386383430,32.73189349,170.25,170.2,32.73329349]
[1730386383822,26.85819349,170.25,170.2,47.42189349]
[1730386384750,6.12549856,170.29,170.17,26.85819349]
[1730386384751,26.85819349,170.22,170.17,26.85819349]
[1730386385050,16.78240623,170.22,170.17,16.78240623]
[1730386385222,16.78240623,170.23,170.18,5.8761]
[1730386385543,16.78240623,170.24,170.19,16.78240623]
[1730386385753,16.78240623,170.22,170.18,5.8761]
[1730386386046,16.78240623,170.21,170.17,20.5675]
[1730386386265,16.78240623,170.22,170.17,37.34990623]
[1730386387124,16.78240623,170.18,170.13,31.47620623]
[1730386387656,16.78240623,170.24,170.17,16.78240623]
[1730386387817,4.33130874,170.23,170.19,16.78240623]
[1730386388024,16.78240623,170.24,170.19,16.78240623]
[1730386388248,4.33159947,170.23,170.19,16.78240623]
[1730386388422,16.78240623,170.26,170.21,16.78240623]
[1730386388621,4.3324029,170.25,170.22,16.78240623]
[1730386388937,16.78240623,170.27,170.22,16.78240623]
[1730386389138,4.33232544,170.26,170.21,16.78240623]
[1730386389342,4.33232544,170.25,170.21,16.78240623]
[1730386389554,16.78240623,170.3,170.24,16.78240623]
[1730386389850,4.33243551,170.29,170.25,16.78240623]
[1730386390052,4.33243551,170.28,170.27,16.78240623]
[1730386390426,4.33243551,170.28,170.26,16.78240623]
[1730386390626,22.65400623,170.31,170.26,16.78240623]
[1730386390846,31.15547837,170.3,170.25,26.82466208]
[1730386391039,4.33081629,170.29,170.25,26.82466208]
[1730386391235,26.82466208,170.3,170.25,32.69796208]
[1730386391427,26.82466208,170.29,170.24,41.50906208]
[1730386391635,4.33021719,170.28,170.24,47.38306208]
[1730386391939,26.82466208,170.29,170.24,47.38306208]
[1730386392127,4.32929311,170.28,170.26,26.82466208]
[1730386392436,33.29956278,170.36,170.28,23.776884]
[1730386392639,4.3287453,170.35,170.31,26.82466208]
[1730386393050,33.29956278,170.36,170.31,26.82466208]
[1730386393228,27.42966278,170.36,170.31,32.69596208]